[Event "12ème open de Salon"]
[Site "Salon de Provence, France"]
[Date "2022.07.15"]
[Round "9.5"]
[White "Roganova, Maxime"]
[Black "Guillaume, Jean-Tristan"]
[Result "0-1"]
[TimeControl "1 h 30 min + 30 s"]
[WhiteElo "1471"]
[BlackElo "1575"]

1. e4 {[%clk 01:30:57]} {[%emt 00:00:02]} e5 {[%clk 01:30:58]} {[%emt
00:00:03]} 2. Nf3 {[%clk 01:31:22]} {[%emt 00:00:05]} Nc6 {[%clk 01:31:25]}
{[%emt 00:00:03]} 3. Bc4 {[%clk 01:31:45]} {[%emt 00:00:07]} Nf6 {[%clk
01:31:52]} {[%emt 00:00:04]} 4. d4 {[%clk 01:32:09]} {[%emt 00:00:06]} exd4
{[%clk 01:32:15]} {[%emt 00:00:07]} 5. e5 {[%clk 01:32:33]} {[%emt 00:00:06]}
d5 {[%clk 01:32:41]} {[%emt 00:00:04]} 6. Bb5 {[%clk 01:32:59]} {[%emt
00:00:04]} Nd7 {[%clk 01:33:07]} {[%emt 00:00:04]} 7. Bxc6 {[%clk 01:29:56]}
{[%emt 00:03:33]} bxc6 {[%clk 01:33:31]} {[%emt 00:00:06]} 8. Qxd4 {[%clk
01:30:21]} {[%emt 00:00:05]} Nb8 {[%clk 01:17:18]} {[%emt 00:16:43]} 9. Bg5
{[%clk 01:26:16]} {[%emt 00:04:36]} Be7 {[%clk 01:15:00]} {[%emt 00:02:48]} 10.
Bxe7 {[%clk 01:22:15]} {[%emt 00:04:30]} Qxe7 {[%clk 01:15:22]} {[%emt
00:00:08]} 11. O-O {[%clk 01:22:32]} {[%emt 00:00:13]} Be6 {[%clk 01:13:49]}
{[%emt 00:02:02]} 12. Qa4 {[%clk 01:20:52]} {[%emt 00:02:11]} O-O {[%clk
01:13:29]} {[%emt 00:00:51]} 13. c4 {[%clk 01:20:07]} {[%emt 00:01:15]} Rd8
{[%clk 01:02:02]} {[%emt 00:11:57]} 14. Rd1 {[%clk 01:20:16]} {[%emt 00:00:21]}
Bg4 {[%clk 01:00:52]} {[%emt 00:01:40]} 15. Nbd2 {[%clk 01:16:38]} {[%emt
00:04:08]} d4 {[%clk 00:53:23]} {[%emt 00:07:59]} 16. h3 {[%clk 01:14:30]}
{[%emt 00:02:38]} Bh5 {[%clk 00:48:45]} {[%emt 00:05:09]} 17. Re1 {[%clk
01:13:58]} {[%emt 00:01:01]} c5 {[%clk 00:45:32]} {[%emt 00:03:43]} 18. Nh2
{[%clk 01:12:29]} {[%emt 00:01:59]} Nd7 {[%clk 00:43:54]} {[%emt 00:02:07]} 19.
g4 {[%clk 01:12:12]} {[%emt 00:00:46]} Bg6 {[%clk 00:36:46]} {[%emt 00:07:39]}
20. f4 {[%clk 01:12:34]} {[%emt 00:00:08]} f5 {[%clk 00:33:21]} {[%emt
00:03:54]} 21. Nhf3 {[%clk 01:07:38]} {[%emt 00:05:27]} Nf8 {[%clk 00:32:01]}
{[%emt 00:01:49]} 22. Kg2 {[%clk 01:06:18]} {[%emt 00:01:50]} Be8 {[%clk
00:31:38]} {[%emt 00:00:53]} 23. Qc2 {[%clk 01:06:03]} {[%emt 00:00:45]} d3
{[%clk 00:27:51]} {[%emt 00:04:17]} 24. Qc3 {[%clk 01:05:57]} {[%emt 00:00:36]}
Ne6 {[%clk 00:24:28]} {[%emt 00:03:53]} 25. Kg3 {[%clk 01:05:58]} {[%emt
00:00:28]} Qf7 {[%clk 00:22:26]} {[%emt 00:02:32]} 26. g5 {[%clk 01:04:22]}
{[%emt 00:02:06]} Bc6 {[%clk 00:21:28]} {[%emt 00:01:28]} 27. Re3 {[%clk
01:03:28]} {[%emt 00:01:23]} Rd4 {[%clk 00:16:23]} {[%emt 00:05:36]} 28. Rxd3
{[%clk 00:58:55]} {[%emt 00:05:04]} Nxf4 {[%clk 00:14:21]} {[%emt 00:02:31]} 29.
Nxd4 {[%clk 00:55:28]} {[%emt 00:03:57]} cxd4 {[%clk 00:14:45]} {[%emt
00:00:06]} 30. Qc2 {[%clk 00:55:46]} {[%emt 00:00:12]} Nxd3 {[%clk 00:15:06]}
{[%emt 00:00:09]} 31. Qxd3 {[%clk 00:56:09]} {[%emt 00:00:07]} f4+ {[%clk
00:14:23]} {[%emt 00:01:13]} 32. Kf2 {[%clk 00:55:50]} {[%emt 00:00:49]} Rd8
{[%clk 00:13:46]} {[%emt 00:01:06]} 33. Re1 {[%clk 00:55:38]} {[%emt 00:00:43]}
Qh5 {[%clk 00:12:35]} {[%emt 00:01:41]} 34. Rg1 {[%clk 00:54:22]} {[%emt
00:01:47]} Qh4+ {[%clk 00:12:06]} {[%emt 00:00:58]} 35. Ke2 {[%clk 00:53:41]}
{[%emt 00:01:11]} Re8 {[%clk 00:10:45]} {[%emt 00:01:51]} 36. Qf5 {[%clk
00:51:52]} {[%emt 00:02:20]} f3+ {[%clk 00:06:41]} {[%emt 00:04:33]} 37. Nxf3
{[%clk 00:51:14]} {[%emt 00:01:09]} Bxf3+ {[%clk 00:07:07]} {[%emt 00:00:04]}
38. Kxf3 {[%clk 00:51:10]} {[%emt 00:00:34]} Rf8 {[%clk 00:07:23]} {[%emt
00:00:14]} 39. Qxf8+ {[%clk 00:51:20]} {[%emt 00:00:20]} Kxf8 {[%emt 00:00:09]}
40. Ke2 {[%clk 00:49:43]} {[%emt 00:02:05]} Qxh3 {[%clk 00:07:49]} {[%emt
00:00:25]} 41. Rd1 {[%clk 00:49:57]} {[%emt 00:00:17]} Qe3+ {[%clk 00:07:47]}
{[%emt 00:00:32]} 42. Kf1 {[%clk 00:50:16]} {[%emt 00:00:12]} d3 {[%clk
00:07:44]} {[%emt 00:00:32]} 43. b4 {[%clk 00:50:25]} {[%emt 00:00:21]} Qe2+
{[%clk 00:08:05]} {[%emt 00:00:10]} 0-1

[Event "12ème open de Salon"]
[Site "Salon de Provence, France"]
[Date "2022.07.15"]
[Round "9.6"]
[White "Piquemal, Maxence"]
[Black "Chabaud, Philippe"]
[Result "1-0"]
[TimeControl "1 h 30 min + 30 s"]
[WhiteElo "1668"]
[BlackElo "1481"]

1. d4 {[%clk 01:30:57]} {[%emt 00:00:02]} d5 {[%clk 01:30:51]} {[%emt
00:00:09]} 2. c4 {[%clk 01:31:23]} {[%emt 00:00:04]} e6 {[%clk 01:30:30]}
{[%emt 00:00:51]} 3. Nc3 {[%clk 01:31:47]} {[%emt 00:00:07]} Nf6 {[%clk
01:30:27]} {[%emt 00:00:33]} 4. cxd5 {[%clk 01:31:55]} {[%emt 00:00:22]} exd5
{[%clk 01:30:18]} {[%emt 00:00:40]} 5. Bg5 {[%clk 01:32:16]} {[%emt 00:00:09]}
Be7 {[%clk 01:29:09]} {[%emt 00:01:39]} 6. e3 {[%clk 01:32:44]} {[%emt
00:00:02]} a6 {[%clk 01:29:17]} {[%emt 00:00:21]} 7. Bd3 {[%clk 01:31:54]}
{[%emt 00:01:21]} O-O {[%clk 01:28:42]} {[%emt 00:01:06]} 8. Nge2 {[%clk
01:30:14]} {[%emt 00:02:09]} Nc6 {[%clk 01:26:57]} {[%emt 00:02:14]} 9. O-O
{[%clk 01:28:31]} {[%emt 00:02:14]} Na7 {[%clk 01:18:26]} {[%emt 00:09:00]} 10.
Qc2 {[%clk 01:20:05]} {[%emt 00:08:57]} h6 {[%clk 01:15:45]} {[%emt 00:03:11]}
11. Bf4 {[%clk 01:16:48]} {[%emt 00:03:48]} Bd6 {[%clk 01:14:16]} {[%emt
00:01:59]} 12. Bg3 {[%clk 01:14:11]} {[%emt 00:03:08]} Bxg3 {[%clk 01:12:41]}
{[%emt 00:02:04]} 13. Nxg3 {[%clk 01:14:39]} {[%emt 00:00:02]} Re8 {[%clk
01:12:08]} {[%emt 00:01:03]} 14. Rac1 {[%clk 01:11:25]} {[%emt 00:03:44]} c6
{[%clk 01:12:05]} {[%emt 00:00:32]} 15. b4 {[%clk 01:02:43]} {[%emt 00:09:13]}
Nb5 {[%clk 01:08:55]} {[%emt 00:03:40]} 16. a4 {[%clk 00:57:38]} {[%emt
00:05:35]} Nxc3 {[%clk 01:03:09]} {[%emt 00:06:15]} 17. Qxc3 {[%clk 00:58:05]}
{[%emt 00:00:03]} Ne4 {[%clk 01:00:05]} {[%emt 00:03:33]} 18. Nxe4 {[%clk
00:56:46]} {[%emt 00:01:50]} dxe4 {[%clk 01:00:09]} {[%emt 00:00:24]} 19. Bc4
{[%clk 00:57:01]} {[%emt 00:00:17]} Be6 {[%clk 00:59:55]} {[%emt 00:00:44]} 20.
f3 {[%clk 00:51:19]} {[%emt 00:06:13]} exf3 {[%clk 00:56:12]} {[%emt 00:04:12]}
21. Rxf3 {[%clk 00:51:28]} {[%emt 00:00:22]} Bd5 {[%clk 00:56:31]} {[%emt
00:00:10]} 22. Bxd5 {[%clk 00:49:05]} {[%emt 00:02:53]} Qxd5 {[%clk 00:54:46]}
{[%emt 00:02:16]} 23. Qc5 {[%clk 00:36:20]} {[%emt 00:13:15]} Qxc5 {[%clk
00:43:13]} {[%emt 00:12:02]} 24. bxc5 {[%clk 00:36:42]} {[%emt 00:00:08]} Rad8
{[%emt 00:01:00]} 25. Rd1 {[%clk 00:30:04]} {[%emt 00:07:06]} Rd5 {[%clk
00:39:30]} {[%emt 00:03:45]} 26. Kf2 {[%clk 00:26:20]} {[%emt 00:04:14]} Red8
{[%clk 00:34:45]} {[%emt 00:05:15]} 27. Ke2 {[%clk 00:25:40]} {[%emt 00:01:10]}
f5 {[%clk 00:31:48]} {[%emt 00:03:26]} 28. Rdf1 {[%clk 00:22:20]} {[%emt
00:03:51]} g6 {[%clk 00:31:20]} {[%emt 00:00:58]} 29. h3 {[%clk 00:20:58]}
{[%emt 00:01:53]} Re8 {[%clk 00:24:02]} {[%emt 00:07:48]} 30. Kd3 {[%clk
00:19:23]} {[%emt 00:02:05]} Rf8 {[%clk 00:20:00]} {[%emt 00:04:31]} 31. g4
{[%clk 00:17:06]} {[%emt 00:02:48]} Kh7 {[%clk 00:16:31]} {[%emt 00:03:59]} 32.
gxf5 {[%clk 00:16:06]} {[%emt 00:01:30]} gxf5 {[%clk 00:15:14]} {[%emt
00:01:48]} 33. Rb1 {[%clk 00:13:07]} {[%emt 00:03:28]} Rf7 {[%clk 00:14:07]}
{[%emt 00:01:37]} 34. Kc4 {[%clk 00:11:19]} {[%emt 00:02:18]} Rdd7 {[%clk
00:08:54]} {[%emt 00:05:42]} 35. Rbf1 {[%clk 00:10:40]} {[%emt 00:01:10]} Kg6
{[%clk 00:08:47]} {[%emt 00:00:36]} 36. Rf4 {[%clk 00:09:28]} {[%emt 00:01:42]}
a5 {[%clk 00:08:35]} {[%emt 00:00:41]} 37. h4 {[%clk 00:08:44]} {[%emt
00:01:15]} h5 {[%clk 00:07:27]} {[%emt 00:01:38]} 38. Rg1+ {[%clk 00:09:03]}
{[%emt 00:00:11]} Kh6 {[%clk 00:04:20]} {[%emt 00:03:37]} 39. Rg5 {[%clk
00:08:47]} {[%emt 00:00:46]} Rd5 {[%clk 00:04:12]} {[%emt 00:00:37]} 40. e4
{[%clk 00:08:40]} {[%emt 00:00:38]} 1-0

[Event "12ème open de Salon"]
[Site "Salon de Provence, France"]
[Date "2022.07.15"]
[Round "9.7"]
[White "Roux, Jean-Marie"]
[Black "Frailinu, Jean-Bernard"]
[Result "0-1"]
[TimeControl "1 h 30 min + 30 s"]
[WhiteElo "1294"]
[BlackElo "1349"]

1. e4 {[%clk 01:30:30]} {[%emt 16:30:09]} e6 {[%clk 01:31:14]} {[%emt
00:00:21]} 2. Nf3 {[%clk 01:29:13]} {[%emt 00:02:16]} Nf6 {[%clk 01:31:02]}
{[%emt 00:00:42]} 3. Nc3 {[%clk 01:29:18]} {[%emt 00:00:24]} d5 {[%clk
01:31:10]} {[%emt 00:00:23]} 4. e5 {[%clk 01:29:17]} {[%emt 00:00:31]} Nfd7
{[%clk 01:31:29]} {[%emt 00:00:11]} 5. d4 {[%clk 01:29:08]} {[%emt 00:00:39]}
c5 {[%clk 01:31:44]} {[%emt 00:00:15]} 6. Be3 {[%clk 01:28:45]} {[%emt
00:00:53]} Nc6 {[%clk 01:31:52]} {[%emt 00:00:21]} 7. dxc5 {[%clk 01:28:05]}
{[%emt 00:01:08]} Nxc5 {[%clk 01:31:37]} {[%emt 00:00:47]} 8. Bxc5 {[%clk
01:27:03]} {[%emt 00:01:28]} Bxc5 {[%clk 01:32:02]} {[%emt 00:00:08]} 9. Na4
{[%clk 01:24:57]} {[%emt 00:02:37]} Be7 {[%clk 01:31:29]} {[%emt 00:01:03]} 10.
Bd3 {[%clk 01:24:42]} {[%emt 00:00:46]} a6 {[%clk 01:31:32]} {[%emt 00:00:26]}
11. Qe2 {[%clk 01:23:24]} {[%emt 00:01:45]} Bd7 {[%clk 01:30:03]} {[%emt
00:02:01]} 12. O-O {[%clk 01:18:59]} {[%emt 00:04:56]} Nb4 {[%clk 01:30:19]}
{[%emt 00:00:14]} 13. Nc3 {[%clk 01:18:39]} {[%emt 00:00:49]} Nxd3 {[%clk
01:30:29]} {[%emt 00:00:21]} 14. cxd3 {[%emt 00:00:58]} O-O {[%emt 00:00:34]}
15. Rfd1 {[%clk 01:16:43]} {[%emt 00:00:54]} Qb6 {[%clk 01:30:05]} {[%emt
00:00:53]} 16. b3 {[%clk 01:16:32]} {[%emt 00:00:41]} Rfc8 {[%clk 01:29:45]}
{[%emt 00:00:50]} 17. Nb1 {[%clk 01:16:10]} {[%emt 00:00:52]} Rc7 {[%clk
01:29:36]} {[%emt 00:00:39]} 18. Nbd2 {[%clk 01:16:07]} {[%emt 00:00:33]} Rac8
{[%clk 01:29:44]} {[%emt 00:00:22]} 19. d4 {[%clk 01:15:35]} {[%emt 00:01:01]}
Bb5 {[%clk 01:29:13]} {[%emt 00:01:02]} 20. Qe3 {[%clk 01:15:25]} {[%emt
00:00:41]} Rc3 {[%clk 01:28:57]} {[%emt 00:00:45]} 21. Qf4 {[%clk 01:15:17]}
{[%emt 00:00:37]} h6 {[%clk 01:28:41]} {[%emt 00:00:48]} 22. Nf1 {[%clk
01:14:01]} {[%emt 00:01:47]} Ba3 {[%clk 01:28:23]} {[%emt 00:00:47]} 23. Ng3
{[%clk 01:13:08]} {[%emt 00:01:23]} Bd3 {[%clk 01:26:32]} {[%emt 00:02:20]} 24.
Qg4 {[%clk 01:11:43]} {[%emt 00:01:56]} Bb2 {[%clk 01:24:12]} {[%emt 00:02:50]}
25. Nh5 {[%clk 01:10:27]} {[%emt 00:01:47]} Bg6 {[%clk 01:23:44]} {[%emt
00:00:58]} 26. Rab1 {[%clk 01:10:24]} {[%emt 00:00:34]} Rc1 {[%clk 01:23:47]}
{[%emt 00:00:27]} 27. Nh4 {[%clk 01:10:02]} {[%emt 00:00:52]} Bxh5 {[%clk
01:23:29]} {[%emt 00:00:48]} 28. Qxh5 {[%clk 01:10:02]} {[%emt 00:00:27]} Rxd1+
{[%clk 01:23:41]} {[%emt 00:00:20]} 29. Rxd1 {[%clk 01:07:27]} {[%emt
00:03:06]} Bxd4 {[%clk 01:23:41]} {[%emt 00:00:29]} 30. Qe2 {[%clk 01:06:01]}
{[%emt 00:01:56]} Qb4 {[%clk 01:21:48]} {[%emt 00:02:23]} 31. g4 {[%clk
01:04:19]} {[%emt 00:02:13]} g5 {[%clk 01:21:23]} {[%emt 00:00:55]} 32. Ng2
{[%clk 01:03:13]} {[%emt 00:01:35]} Qc3 {[%clk 01:19:30]} {[%emt 00:02:21]} 33.
h4 {[%clk 01:01:07]} {[%emt 00:02:39]} Bxe5 {[%clk 01:13:59]} {[%emt 00:06:35]}
34. hxg5 {[%clk 01:00:33]} {[%emt 00:01:27]} hxg5 {[%clk 01:14:10]} {[%emt
00:00:21]} 35. Ne3 {[%clk 01:00:13]} {[%emt 00:00:51]} Bf4 {[%clk 01:10:18]}
{[%emt 00:04:22]} 36. Ng2 {[%clk 00:57:00]} {[%emt 00:03:43]} Qe5 {[%clk
01:09:04]} {[%emt 00:01:43]} 37. Qf3 {[%clk 00:56:07]} {[%emt 00:01:22]} Rc3
{[%clk 01:06:55]} {[%emt 00:02:38]} 38. Rd3 {[%clk 00:55:35]} {[%emt 00:01:04]}
Rxd3 {[%clk 01:07:07]} {[%emt 00:00:18]} 39. Qxd3 {[%clk 00:55:48]} {[%emt
00:00:16]} Qa1+ {[%clk 01:07:23]} {[%emt 00:00:14]} 40. Qf1 {[%clk 00:55:30]}
{[%emt 00:00:48]} Qxf1+ {[%clk 01:07:36]} {[%emt 00:00:17]} 41. Kxf1 {[%clk
00:55:47]} {[%emt 00:00:14]} Bd6 {[%clk 01:07:44]} {[%emt 00:00:21]} 42. Ne3
{[%clk 00:55:28]} {[%emt 00:00:50]} f6 {[%clk 01:07:23]} {[%emt 00:00:52]} 43.
f3 {[%clk 00:55:41]} {[%emt 00:00:17]} Kf7 {[%clk 01:07:40]} {[%emt 00:00:13]}
44. Ke2 {[%clk 00:55:54]} {[%emt 00:00:17]} Ke7 {[%clk 01:07:36]} {[%emt
00:00:34]} 45. Kd3 {[%clk 00:55:54]} {[%emt 00:00:31]} Kd7 {[%clk 01:07:19]}
{[%emt 00:00:47]} 46. Nc2 {[%clk 00:55:56]} {[%emt 00:00:28]} e5 {[%clk
01:06:59]} {[%emt 00:00:49]} 47. Ne3 {[%clk 00:55:41]} {[%emt 00:00:44]} Kc6
{[%clk 01:06:38]} {[%emt 00:00:52]} 48. Nf5 {[%clk 00:55:44]} {[%emt 00:00:28]}
Bf8 {[%clk 01:06:47]} {[%emt 00:00:22]} 49. Kc3 {[%clk 00:55:43]} {[%emt
00:00:30]} a5 {[%clk 01:06:44]} {[%emt 00:00:32]} 50. Ng3 {[%clk 00:55:40]}
{[%emt 00:00:34]} Kb5 {[%clk 01:04:58]} {[%emt 00:02:14]} 51. Ne2 {[%clk
00:55:02]} {[%emt 00:01:08]} Bb4+ {[%clk 01:04:04]} {[%emt 00:01:24]} 52. Kb2
{[%clk 00:55:06]} {[%emt 00:00:27]} a4 {[%clk 01:04:06]} {[%emt 00:00:28]} 53.
Nc1 {[%clk 00:53:53]} {[%emt 00:01:44]} a3+ {[%clk 01:02:50]} {[%emt 00:01:45]}
54. Kc2 {[%clk 00:53:47]} {[%emt 00:00:37]} Bc5 {[%clk 01:02:08]} {[%emt
00:01:10]} 55. Nd3 {[%clk 00:53:53]} {[%emt 00:00:25]} e4 {[%clk 01:00:04]}
{[%emt 00:02:34]} 56. fxe4 {[%clk 00:53:32]} {[%emt 00:00:50]} dxe4 {[%clk
01:00:23]} {[%emt 00:00:13]} 57. Nc1 {[%clk 00:50:43]} {[%emt 00:03:18]} Bd4
{[%clk 01:00:37]} {[%emt 00:00:16]} 58. Ne2 {[%clk 00:50:41]} {[%emt 00:00:32]}
Kc5 {[%clk 01:00:33]} {[%emt 00:00:33]} 59. Kd2 {[%clk 00:50:19]} {[%emt
00:00:53]} b5 {[%clk 01:00:40]} {[%emt 00:00:23]} 60. Kc2 {[%clk 00:50:13]}
{[%emt 00:00:37]} b4 {[%clk 01:00:40]} {[%emt 00:00:30]} 61. Kd2 {[%clk
00:49:40]} {[%emt 00:01:03]} Kd5 {[%clk 01:00:53]} {[%emt 00:00:17]} 62. Kc2
{[%clk 00:49:42]} {[%emt 00:00:28]} Be3 {[%clk 00:59:00]} {[%emt 00:02:21]} 63.
Ng3 {[%clk 00:49:34]} {[%emt 00:00:39]} Bf4 {[%clk 00:58:33]} {[%emt 00:00:58]}
64. Ne2 {[%clk 00:49:33]} {[%emt 00:00:32]} Ke5 {[%clk 00:57:54]} {[%emt
00:01:07]} 65. Ng1 {[%clk 00:49:11]} {[%emt 00:00:54]} f5 {[%clk 00:58:00]}
{[%emt 00:00:23]} 66. gxf5 {[%emt 00:00:19]} Kxf5 {[%emt 00:00:20]} 67. Ne2
{[%clk 00:48:51]} {[%emt 00:00:11]} Ke5 {[%clk 00:57:35]} {[%emt 00:00:54]} 68.
Ng1 {[%clk 00:48:48]} {[%emt 00:00:33]} g4 {[%clk 00:57:51]} {[%emt 00:00:14]}
69. Ne2 {[%clk 00:48:31]} {[%emt 00:00:48]} g3 {[%clk 00:57:29]} {[%emt
00:00:52]} 70. Kd1 {[%clk 00:48:31]} {[%emt 00:00:28]} e3 {[%clk 00:57:15]}
{[%emt 00:00:45]} 71. Ke1 {[%clk 00:48:30]} {[%emt 00:00:31]} Ke4 {[%clk
00:57:13]} {[%emt 00:00:32]} 72. Kf1 {[%clk 00:48:40]} {[%emt 00:00:21]} Bd6
{[%clk 00:56:51]} {[%emt 00:00:49]} 73. Kg2 {[%clk 00:48:37]} {[%emt 00:00:35]}
Kd3 {[%clk 00:57:08]} {[%emt 00:00:12]} 74. Kf3 {[%clk 00:48:05]} {[%emt
00:01:02]} Bc7 {[%clk 00:57:07]} {[%emt 00:00:32]} 75. Ng1 {[%clk 00:47:35]}
{[%emt 00:01:00]} Kc2 {[%clk 00:55:42]} {[%emt 00:01:55]} 76. Kxe3 {[%clk
00:46:58]} {[%emt 00:01:06]} Kb2 {[%clk 00:56:02]} {[%emt 00:00:12]} 77. Kf3
{[%clk 00:46:32]} {[%emt 00:00:55]} Kxa2 {[%clk 00:56:21]} {[%emt 00:00:12]} 78.
Ne2 {[%clk 00:46:43]} {[%emt 00:00:20]} Kxb3 {[%clk 00:56:38]} {[%emt
00:00:12]} 79. Nc1+ {[%clk 00:46:40]} {[%emt 00:00:33]} Kc2 {[%clk 00:56:22]}
{[%emt 00:00:45]} 80. Na2 {[%clk 00:46:48]} {[%emt 00:00:23]} b3 {[%clk
00:55:34]} {[%emt 00:01:18]} 81. Nb4+ {[%emt 00:00:20]} Kb1 {[%emt 00:00:31]}
82. Kg2 {[%clk 00:45:58]} {[%emt 00:00:29]} a2 {[%clk 00:55:51]} {[%emt
00:00:13]} 83. Nxa2 {[%clk 00:46:07]} {[%emt 00:00:21]} bxa2 {[%clk 00:56:12]}
{[%emt 00:00:10]} 84. Kf3 {[%clk 00:46:16]} {[%emt 00:00:20]} 0-1